bitfinex/quotes_ETHUSD_20250904
["timestamp","ask_amount","ask_price","bid_price","bid_amount"]
[1756988771430,7.52166972,4416.7,4416.6,0.3081]
[1756988771745,0.0242,4416.7,4416.6,3.78888511]
[1756988771945,0.0242,4416.7,4416.6,4.17913362]
[1756988772433,0.0242,4416.7,4416.6,8.09113362]
[1756988773423,1e-08,4416.7,4416.6,8.09113362]
[1756988774846,1e-08,4416.7,4416.6,4.17913362]
[1756988775027,1e-08,4416.7,4416.6,8.09013362]
[1756988776223,1e-08,4416.7,4416.6,4.17913362]
[1756988776628,1e-08,4416.7,4416.6,8.11277547]
[1756988776825,1e-08,4416.7,4416.6,8.09013362]
[1756988778461,0.00040001,4417.2,4416.7,2.26413385]
[1756988778664,0.00040001,4417.2,4416.8,2.47700824]
[1756988778854,0.00040001,4417.2,4417.1,0.4169]
[1756988779032,0.00040001,4417.2,4417.1,4.3269]
[1756988779229,0.00040001,4417.2,4417.1,6.59082882]
[1756988779530,0.00040001,4417.2,4417.1,8.94061566]
[1756988779756,0.00040001,4417.2,4417.1,4.24611566]
[1756988779959,0.00040001,4417.2,4417.1,7.72401566]
[1756988780259,0.00040001,4417.2,4417.1,8.15611566]
[1756988780456,0.00040001,4417.2,4417.1,8.94061566]
[1756988780956,0.00040001,4417.2,4417.1,8.82781566]
[1756988781258,0.00040001,4417.2,4417.1,8.94061566]
[1756988781463,0.00040001,4417.2,4417.1,8.89021566]
[1756988782236,1e-08,4417.4,4417.3,3.05582631]
[1756988782432,1e-08,4417.4,4417.3,4.04667588]
[1756988782638,1e-08,4417.4,4417.3,5.54473762]
[1756988783772,1e-08,4417.8,4417.7,2.26362134]
[1756988783945,1e-08,4417.8,4417.7,7.84062134]
[1756988784149,1e-08,4417.8,4417.7,9.47412134]
[1756988784451,1e-08,4417.8,4417.7,10.87428012]
[1756988786057,1e-08,4417.8,4417.7,13.87428012]
[1756988786880,1e-08,4417.8,4417.7,14.66628012]
[1756988787482,1e-08,4417.8,4417.7,14.75696672]
[1756988789858,1e-08,4417.8,4417.7,14.75496672]
[1756988790265,1e-08,4417.8,4417.7,14.66428012]
[1756988791998,1e-08,4417.8,4417.7,8.74868012]
[1756988792164,1e-08,4417.8,4417.7,12.44127124]
[1756988792489,1e-08,4417.8,4417.7,13.12668012]
[1756988792875,1e-08,4417.8,4417.7,12.65958012]
[1756988793292,0.00100001,4417.8,4417.7,12.65958012]
[1756988793601,0.00100001,4417.8,4417.7,13.89358012]
[1756988794002,0.00100001,4417.8,4417.7,14.68558012]
[1756988794763,0.00100001,4417.8,4417.7,13.45158012]
[1756988795264,0.00100001,4417.8,4417.7,9.54558012]
[1756988795483,0.00100001,4417.8,4417.7,13.45058012]
[1756988795963,0.00100001,4417.8,4417.7,13.91768012]
[1756988797694,0.00100001,4417.8,4417.7,13.44958012]
[1756988798999,0.00100001,4417.8,4417.7,10.01268012]
[1756988799188,0.00100001,4417.8,4417.7,13.44958012]
[1756988799712,0.30810001,4417.8,4417.7,8.44458012]
[1756988799992,0.30810001,4417.8,4417.7,12.34858012]
[1756988800362,0.00100001,4417.8,4417.7,13.12468012]
[1756988800776,0.30810001,4417.8,4417.7,12.34858012]
[1756988800978,0.30810001,4417.8,4417.7,12.34758012]
[1756988801181,0.00100001,4417.8,4417.7,13.12368012]
[1756988801710,0.00100001,4417.8,4417.7,12.65658012]
[1756988801882,0.30810001,4417.8,4417.7,12.34758012]
[1756988802394,0.00100001,4417.8,4417.7,12.34758012]
[1756988803502,0.00100001,4417.8,4417.7,12.65658012]
[1756988803809,0.00100001,4417.8,4417.7,14.68258012]
[1756988803971,0.00020001,4417.8,4417.7,14.68258012]
[1756988806184,0.00020001,4417.8,4417.7,13.44758012]
[1756988807009,0.30730001,4417.8,4417.7,12.34658012]
[1756988807302,1.49120001,4417.8,4417.7,12.34658012]
[1756988807711,1.49120001,4417.8,4417.7,4.04442134]
[1756988808006,1.49120001,4417.8,4417.7,7.94542134]
[1756988812687,1.49120001,4417.8,4417.6,0.004]
[1756988812870,1.01760001,4417.8,4417.7,3.9]
[1756988813072,1.49120001,4417.8,4417.7,6.16362134]
[1756988814025,1.49120001,4417.8,4417.7,3.9]
[1756988814379,1.49120001,4417.8,4417.7,6.16362134]
[1756988815411,1.49120001,4417.8,4417.7,3.9]
[1756988815716,1.65170001,4417.8,4417.6,0.004]
[1756988815880,1.65170001,4417.8,4417.6,3.904]
[1756988816084,1.1839,4417.7,4417.6,0.004]
[1756988816512,1.491,4417.7,4417.6,0.004]
[1756988816888,1.66755,4417.7,4417.6,0.004]
[1756988817410,1.491,4417.7,4417.6,6.16767258]
[1756988817581,0.3071,4417.7,4417.6,6.16767258]
[1756988817979,1.491,4417.7,4417.6,6.16767258]
[1756988819312,0.3071,4417.7,4417.6,6.16767258]
[1756988819722,0.3071,4417.7,4417.6,2.26767258]
[1756988819901,0.00020001,4417.8,4417.7,2.26362134]
[1756988821112,0.29070001,4417.8,4417.7,2.26362134]
[1756988821303,0.00020001,4417.8,4417.7,2.26362134]
[1756988821509,0.00020001,4417.8,4417.7,2.55932134]
[1756988821691,0.29070001,4417.8,4417.7,2.26362134]
[1756988822306,1.46970001,4417.8,4417.7,3.899]
[1756988822519,2.28166537,4417.8,4417.7,6.16262134]
[1756988823027,2.39446537,4417.8,4417.7,3.899]
[1756988823911,2.39446537,4417.8,4417.6,0.004]
[1756988824114,2.39446537,4417.8,4417.6,3.902]
[1756988824431,1.21546537,4417.8,4417.7,2.26362134]
[1756988824812,1.179,4417.7,4417.6,3.902]
[1756988825018,1.4695,4417.7,4417.6,3.902]
[1756988825219,2.37394189,4417.7,4417.6,6.16567258]
[1756988825410,1.4695,4417.7,4417.6,6.16567258]
[1756988825612,1.4695,4417.7,4417.6,3.902]
[1756988826005,1.4695,4417.7,4417.6,6.16567258]
[1756988828004,1.4695,4417.7,4417.6,0.004]
[1756988829242,1.4695,4417.7,4417.2,0.004]
[1756988829405,1.4695,4417.7,4416.8,0.029]
[1756988829406,12.02557986,4417.3,4416.8,0.029]
[1756988829601,4.47670666,4417.6,4416.8,0.029]
[1756988829602,0.47232785,4417.2,4416.8,0.029]
[1756988829803,0.4041,4416.9,4416.8,0.029]
[1756988830021,3.4041,4416.9,4416.8,0.029]
[1756988830235,5.46979345,4416.9,4416.8,0.029]
[1756988830536,5.93269345,4416.9,4416.8,0.029]
[1756988832001,4.75369345,4416.9,4416.8,0.029]
[1756988832442,1.75369345,4416.9,4416.8,0.029]
[1756988832642,1.75289345,4416.9,4416.8,0.029]
[1756988833234,2.93189345,4416.9,4416.8,0.029]
[1756988833536,2.21579345,4416.9,4416.8,0.029]
[1756988833837,2.21579345,4416.9,4416.8,2.29308259]
[1756988833838,0.1136,4416.9,4416.8,2.29308259]
[1756988834024,0.7161,4417.3,4417.1,2.26392729]
[1756988834025,0.1128,4417.3,4417.1,2.26392729]
[1756988834203,0.1128,4417.3,4417.2,2.26387756]
[1756988835017,3.00020001,4417.8,4417.2,2.55957756]
[1756988835205,0.1128,4417.5,4417.4,2.26373427]
[1756988835535,0.1128,4417.5,4417.4,2.55943427]
[1756988836104,0.00020001,4417.8,4417.7,2.26362134]
[1756988836309,0.11300001,4417.8,4417.7,2.55932134]
[1756988837180,0.00020001,4417.8,4417.7,2.99502134]
[1756988837641,0.00020001,4417.8,4417.7,2.55932134]
[1756988838539,0.00020001,4417.8,4417.7,2.26362134]
[1756988839042,0.29070001,4417.8,4417.7,2.26362134]
[1756988839460,0.00020001,4417.8,4417.7,2.55932134]
[1756988840217,0.00020001,4417.8,4417.7,6.45532134]
[1756988840414,5.62699929,4417.8,4417.7,6.15862134]
[1756988842464,5.62699929,4417.8,4417.6,2.37645913]
[1756988842767,1.2918,4417.7,4417.0,3.895]
[1756988842933,5.33629928,4417.0,4416.8,0.029]
[1756988843127,5.33629928,4417.0,4416.9,3.895]
[1756988843637,5.33629928,4417.0,4416.9,6.15899354]
[1756988845033,0.1128,4417.3,4417.2,2.26387756]
[1756988846329,0.1128,4417.3,4417.2,2.55957756]
[1756988846937,0.1128,4417.3,4417.2,2.26387756]
[1756988847140,9.23129928,4417.7,4417.3,2.26381833]
[1756988847340,0.2905,4417.4,4417.3,2.26381833]
[1756988848547,0.2905,4417.4,4417.2,6.1578674]
[1756988849045,0.2905,4417.4,4417.3,2.26382631]
[1756988849246,0.1128,4417.5,4417.3,2.55952631]
[1756988849458,0.2905,4417.4,4417.3,2.26382631]
[1756988849656,0.2905,4417.4,4417.2,6.23146494]
[1756988849860,5.62679928,4417.4,4417.2,6.23146494]
[1756988850346,5.33629928,4417.4,4417.3,2.26382631]
[1756988850539,0.1128,4417.5,4417.4,2.26377507]
[1756988850946,0.1128,4417.5,4417.4,2.57507507]
[1756988851155,0.1128,4417.5,4417.4,0.3113]
[1756988851347,0.4043,4417.5,4417.3,2.26381414]
[1756988852069,0.4043,4417.5,4417.4,2.26377507]
[1756988852247,0.4043,4417.5,4417.3,2.26382514]
[1756988852445,0.4043,4417.5,4417.4,2.26377507]
[1756988852668,0.4043,4417.5,4417.3,2.26381054]
[1756988852979,0.4043,4417.5,4417.4,2.26377507]
[1756988853136,0.4043,4417.5,4417.3,2.26381208]
[1756988853488,0.4043,4417.5,4417.2,2.33746141]
[1756988853648,5.33629928,4417.4,4417.2,2.33746141]
[1756988853966,5.33629928,4417.4,4417.3,2.26382631]
[1756988854177,5.62779928,4417.4,4417.3,2.26382631]
[1756988854666,5.62779928,4417.4,4417.2,2.33746831]
[1756988854883,1.1218,4417.3,4417.2,0.0736]
[1756988855382,1.4133,4417.3,4417.2,0.0736]
[1756988855582,0.2915,4417.3,4417.2,2.33747756]
[1756988855762,5.33549928,4417.4,4417.2,2.33747756]
[1756988855958,5.33549928,4417.4,4417.3,2.26382631]
[1756988856158,0.1128,4417.5,4417.4,2.26377507]
[1756988856358,0.1128,4417.5,4417.4,2.73387507]
[1756988856584,0.1128,4417.5,4417.4,3.04517507]
[1756988856781,0.1128,4417.5,4417.4,2.57507507]
[1756988857081,0.00020001,4417.8,4417.7,2.26362134]
[1756988857454,0.00020001,4417.8,4417.7,3.04502134]
[1756988857690,0.00020001,4417.8,4417.7,3.80845755]
[1756988857992,0.00020001,4417.8,4417.7,3.89862134]
[1756988859687,0.00020001,4417.8,4417.7,3.42852134]
[1756988859990,0.29170001,4417.8,4417.7,2.37642134]
[1756988860549,0.00020001,4417.8,4417.7,2.37642134]
[1756988861089,0.00020001,4417.8,4417.7,2.68772134]
[1756988861385,0.00020001,4417.8,4417.7,2.37642134]
[1756988862054,0.00020001,4417.8,4417.7,2.68772134]
[1756988864787,0.00020001,4417.8,4417.7,2.37642134]
[1756988865593,0.00020001,4417.8,4417.7,2.68772134]
[1756988865787,0.29170001,4417.8,4417.7,2.37642134]
[1756988865962,0.00020001,4417.8,4417.7,2.68772134]
[1756988866288,0.29170001,4417.8,4417.7,2.37642134]
[1756988867260,0.00020001,4417.8,4417.7,2.37642134]
[1756988867686,0.29170001,4417.8,4417.7,2.37642134]
[1756988868191,6.74979929,4417.8,4417.7,2.37642134]
[1756988868375,6.74979929,4417.8,4417.7,2.26362134]
[1756988868974,0.00020001,4417.8,4417.7,2.26362134]
[1756988869177,0.00020001,4417.8,4417.7,2.57492134]
[1756988869886,0.00020001,4417.8,4417.7,4.50357463]
[1756988871200,0.00020001,4417.8,4417.7,4.52621084]
[1756988871390,0.00020001,4417.8,4417.7,4.59427768]
[1756988872211,0.00020001,4417.8,4417.7,3.76277463]
[1756988872794,0.00020001,4417.8,4417.7,4.50357463]
[1756988874996,0.00020001,4417.8,4417.7,3.76277463]
[1756988875803,0.00020001,4417.8,4417.7,3.29267463]
[1756988876018,0.29170001,4417.8,4417.7,2.37642134]
[1756988876510,0.00020001,4417.8,4417.7,2.37642134]
[1756988877622,0.00020001,4417.8,4417.7,2.68772134]
[1756988878014,0.00020001,4417.8,4417.7,3.89862134]
[1756988878328,0.00020001,4417.8,4417.7,3.78582134]
[1756988878493,0.00020001,4417.8,4417.7,5.03720456]
[1756988878688,0.00020001,4417.8,4417.7,5.12790844]
[1756988880424,0.00040001,4417.9,4417.8,2.2635701]
[1756988880811,0.00040001,4417.9,4417.8,2.5722701]
[1756988881130,0.00040001,4417.9,4417.8,3.98062911]
[1756988881707,0.00040001,4417.9,4417.8,4.68002911]
[1756988882313,0.00040001,4417.9,4417.8,5.47202911]
[1756988883221,0.00040001,4417.9,4417.8,13.80832839]
[1756988885540,0.00040001,4417.9,4417.8,12.35712839]
[1756988888707,0.00040001,4417.9,4417.8,6.22882911]
[1756988890845,0.00040001,4417.9,4417.8,3.22882911]
[1756988891555,0.00040001,4417.9,4417.8,2.2635701]
[1756988891706,5.33669929,4417.9,4417.8,2.2635701]
[1756988892342,5.33669929,4417.9,4417.3,0.004]
[1756988892509,5.33669929,4417.9,4417.5,2.26369329]
[1756988892713,5.33669929,4417.9,4417.8,2.2635701]
[1756988893113,0.00040001,4417.9,4417.8,2.2635701]
[1756988895246,0.00040001,4417.9,4417.8,2.71629185]
[1756988895415,0.00040001,4417.9,4417.8,2.2635701]
[1756988898850,0.00040001,4417.9,4417.8,2.3763701]
[1756988905881,0.00060001,4418.3,4418.2,2.26336517]
[1756988906231,0.00060001,4418.3,4418.2,2.37616517]
[1756988908360,0.00060001,4418.3,4418.2,2.84012529]
[1756988909373,0.00060001,4418.3,4418.2,2.37616517]
[1756988909737,0.00060001,4418.3,4418.2,2.26336517]
[1756988911768,0.00060001,4418.3,4417.6,2.26766845]
[1756988911949,0.1128,4418.2,4417.7,2.26362134]
[1756988912152,0.1128,4418.2,4417.7,2.26358587]
[1756988912353,0.1128,4418.2,4417.6,0.1168]
[1756988912680,0.83672055,4418.2,4417.7,2.26360444]
[1756988912876,0.83672055,4418.2,4417.7,2.26357151]
[1756988913556,0.83672055,4418.2,4417.6,0.004]
[1756988913768,0.83672055,4418.2,4417.8,2.2635253]
[1756988913986,0.83672055,4418.2,4417.6,2.26766606]
[1756988913987,0.83672055,4418.2,4417.6,0.004]
[1756988914147,2.98732404,4418.2,4417.6,0.004]
[1756988914498,0.1128,4417.7,4417.6,0.004]
[1756988915970,0.0392,4417.7,4417.6,0.004]
[1756988921593,0.0392,4417.7,4417.6,2.26767258]
[1756988921793,0.0392,4417.7,4417.6,0.004]
[1756988922866,0.0392,4417.7,4417.6,2.26767258]
[1756988923198,0.0392,4417.7,4417.6,0.004]
[1756988924001,9.17939605,4417.7,4417.6,0.004]
[1756988924201,12.65962286,4417.7,4417.6,0.004]
[1756988926375,13.45162286,4417.7,4417.6,0.004]
[1756988926569,13.72949547,4417.7,4417.6,0.004]
[1756988927689,13.45162286,4417.7,4417.6,0.004]
[1756988931304,13.45082286,4417.7,4417.6,0.004]
[1756988933804,6.80452128,4417.7,4417.6,0.004]
[1756988934010,13.45082286,4417.7,4417.6,0.004]
[1756988935001,13.45182286,4417.7,4417.6,0.004]
[1756988935893,6.80552128,4417.7,4417.6,0.004]
[1756988936092,13.52622286,4417.7,4417.6,0.004]
[1756988938110,6.05598007,4417.0,4416.9,0.004]
[1756988938403,14.01449422,4417.0,4416.9,0.004]
[1756988938901,14.2180755,4417.0,4416.9,0.004]
[1756988940005,6.77977392,4417.0,4416.9,0.004]
[1756988940402,13.4260755,4417.0,4416.9,0.004]
[1756988940604,6.77977392,4417.0,4416.9,0.004]
[1756988942891,13.4260755,4417.0,4416.9,0.004]
[1756988943588,14.2180755,4417.0,4416.9,0.004]
[1756988943993,7.57177392,4417.0,4416.9,0.004]
[1756988945515,4.40299385,4417.0,4416.9,0.004]
[1756988945722,6.77977392,4417.0,4416.9,0.004]
[1756988946094,4.51579385,4417.0,4416.9,0.004]
[1756988946294,0.1128,4417.0,4416.9,0.004]
[1756988946617,0.001,4417.7,4417.3,2.26379349]
[1756988946819,0.1128,4417.4,4417.3,2.26379349]
[1756988949234,0.001,4417.7,4417.6,2.26367258]
[1756988949516,0.001,4417.7,4417.6,2.37647258]
[1756988949686,0.001,4417.7,4417.6,3.06687358]
[1756988949888,0.001,4417.7,4417.6,9.71317516]
[1756988950907,0.001,4417.7,4417.6,3.06687358]
[1756988953327,0.1138,4418.6,4418.5,2.26321149]
[1756988954118,0.001,4418.6,4418.5,2.26321149]
[1756988954320,0.001,4418.6,4418.5,2.82865891]
[1756988954708,0.001,4418.6,4418.5,2.85129102]
[1756988954909,0.001,4418.6,4418.5,2.82865891]
[1756988955593,1e-08,4418.8,4418.7,2.26310905]
[1756988955797,1e-08,4418.8,4418.7,2.54822791]
[1756988956730,0.00020001,4419.0,4418.9,2.26300663]
[1756988956895,0.00020001,4419.0,4418.9,2.39843669]
[1756988957325,0.00020001,4419.0,4418.9,3.16780663]
[1756988958600,0.00020001,4419.0,4418.9,6.19043669]
[1756988958795,0.00020001,4419.0,4418.9,7.26798912]
[1756988959435,0.00020001,4419.0,4418.9,6.47598912]
[1756988967627,0.00020001,4419.0,4418.9,7.26798912]
[1756988973543,0.00020001,4419.0,4418.9,12.59711031]
[1756988977152,0.00020001,4419.0,4418.9,7.26798912]
[1756988977352,0.00020001,4419.0,4418.9,12.59711031]
[1756988980755,0.00020001,4419.0,4418.9,7.26798912]
[1756988982055,0.00040001,4419.1,4419.0,2.26295541]
[1756988982228,0.00040001,4419.1,4419.0,9.10659506]
[1756988983327,0.00040001,4419.1,4419.0,3.77747387]
[1756988983527,0.00040001,4419.1,4419.0,9.10659506]
[1756988987931,0.00040001,4419.1,4419.0,9.89859506]
[1756988989648,0.00040001,4419.1,4419.0,4.56947387]
[1756988989856,0.00040001,4419.1,4419.0,9.89859506]
[1756988994150,0.00040001,4419.1,4419.0,9.10659506]
[1756988994531,0.00040001,4419.1,4419.0,3.77747387]
[1756988994728,0.00040001,4419.1,4419.0,9.10659506]
[1756988996066,0.00040001,4419.1,4419.0,3.77747387]
[1756988996473,0.00040001,4419.1,4419.0,9.10659506]
[1756988997664,0.00040001,4419.1,4419.0,10.01139506]
[1756988998566,1e-08,4419.8,4419.7,2.262597]
[1756988998864,1e-08,4419.8,4419.7,7.61434416]
[1756988999068,1e-08,4419.8,4419.7,7.59171819]
[1756988999234,1e-08,4419.8,4419.7,11.38371819]
[1756988999440,1e-08,4419.8,4419.7,12.70831532]
[1756988999953,1e-08,4419.8,4419.7,12.82111532]
[1756989000154,1e-08,4419.8,4419.7,6.69999413]
[1756989000343,1e-08,4419.8,4419.7,11.91631532]
[1756989000544,1e-08,4419.8,4419.7,12.70831532]
[1756989000858,0.48089933,4421.7,4419.9,0.792]
[1756989001049,0.48094368,4422.7,4421.7,7.59069479]
[1756989001369,0.0242,4422.8,4421.7,7.59069479]
[1756989001575,1e-08,4421.8,4421.7,8.38269479]
[1756989001739,0.0242,4422.8,4422.7,2.26106224]
[1756989001942,0.48094368,4424.9,4424.5,3.05214238]
[1756989002136,1e-08,4424.8,4424.7,11.38116141]
[1756989002440,2.3765129,4428.2,4424.7,11.38116141]
[1756989002441,0.50594368,4427.8,4426.7,2.25901913]
[1756989002662,0.50594368,4427.8,4426.7,3.67356364]
[1756989002862,0.50594368,4427.8,4427.7,3.05050893]
[1756989003047,0.025,4427.8,4427.7,13.70875131]
[1756989003248,0.00589587,4429.1,4427.8,0.792]
[1756989003477,0.00589587,4429.1,4429.0,16.70808839]
[1756989003478,1e-08,4429.1,4429.0,16.70808839]
[1756989003636,0.025,4429.8,4429.7,3.04948922]
[1756989003842,0.025,4429.8,4429.7,6.04948922]
[1756989004085,0.09044361,4433.1,4430.7,2.2569797]
[1756989004243,2.25441956,4435.8,4430.7,2.2569797]
[1756989004244,0.46299985,4434.8,4431.7,3.04847042]
[1756989004446,0.09041458,4434.7,4431.7,6.04847042]
[1756989004668,2.25516322,4434.3,4431.7,6.04847042]
[1756989004887,2.25505646,4434.5,4431.7,6.42121691]
[1756989005172,16.38923685,4434.6,4432.0,0.792]
[1756989005374,14.13421844,4434.6,4429.7,4.50157194]
[1756989005568,2.25490783,4434.8,4432.6,2.25598616]
[1756989005750,0.09039558,4435.5,4431.8,3.0]
[1756989005751,14.13421844,4435.1,4431.8,3.0]
[1756989005963,0.09039558,4435.5,4431.9,0.81456368]
[1756989005964,14.13421844,4434.8,4431.9,0.81456368]
[1756989006293,14.13421844,4434.1,4430.4,14.13421844]
[1756989006443,2.25564001,4433.4,4431.2,2.25672504]
[1756989006644,0.025,4433.8,4431.3,2.25664539]
[1756989006860,0.025,4433.8,4430.8,0.792]
[1756989007179,0.025,4433.8,4429.9,3.0]
[1756989007180,0.001,4430.3,4430.0,0.792]
[1756989007387,0.001,4430.3,4430.2,0.792]
[1756989007543,0.0002,4430.3,4430.2,18.4591328]
[1756989007747,3.0,4432.9,4428.0,2.25834525]
[1756989007977,2.25662148,4431.5,4429.6,2.25751366]
[1756989008158,3.0,4432.0,4428.4,14.13421844]
[1756989008159,0.001,4430.7,4428.4,14.13421844]
[1756989008380,1.71342184,4431.9,4429.2,14.15679588]
[1756989008546,2.2568707,4431.0,4429.0,0.17199611]
[1756989008871,2.25654501,4431.6,4429.2,2.25774406]
[1756989009058,4.93903325,4432.3,4428.9,2.25789699]
[1756989009285,3.0,4431.3,4429.0,1.469]
[1756989009444,0.44286992,4432.2,4429.1,0.02257795]
[1756989009644,14.13421844,4431.8,4429.0,2.25782029]
[1756989009843,2.2571415,4430.4,4428.8,2.28291538]
[1756989010049,2.25724975,4430.2,4428.9,1.477]
[1756989010265,0.1128,4429.6,4429.0,0.1128]
[1756989010475,3.792,4430.4,4428.8,0.025]
[1756989010652,3.792,4429.8,4428.8,0.025]
[1756989010853,2.25789371,4429.0,4428.8,0.025]
[1756989011292,14.13421844,4430.4,4428.8,0.025]
[1756989011477,2.25788682,4429.0,4428.8,0.025]
[1756989011687,3.0,4429.3,4427.8,0.025]
[1756989011688,2.25840691,4427.9,4427.8,0.025]
[1756989011994,2.25840691,4427.9,4425.8,0.025]
[1756989011995,2.25881502,4427.1,4425.8,0.025]
[1756989012201,2.25938497,4426.0,4425.8,0.025]
[1756989012416,15.23129994,4427.0,4423.3,0.119]
[1756989012417,2.25992492,4425.0,4423.3,0.119]
[1756989012567,2.25992492,4425.0,4422.8,2.28598778]
[1756989012568,3.0,4425.4,4423.0,0.119]
[1756989012762,0.792,4424.8,4422.8,0.025]
[1756989012966,3.0,4425.0,4422.9,0.0226096]
[1756989013167,0.6792,4425.3,4424.2,2.26024752]
[1756989013410,0.792,4425.2,4422.8,0.025]
[1756989013588,0.792,4425.2,4422.9,2.314]
[1756989013589,3.0,4425.1,4422.9,2.314]
[1756989013904,3.0,4425.1,4422.8,0.025]
[1756989013905,2.26035692,4424.1,4422.8,0.025]
[1756989014101,0.22603569,4424.0,4422.8,0.025]
[1756989014310,2.26092306,4423.0,4421.2,2.26181301]
[1756989014601,3.0,4422.7,4420.8,0.025]
[1756989014771,3.0,4422.5,4420.8,0.025]
[1756989014985,3.0,4422.5,4421.1,2.26187376]
[1756989015170,3.0,4422.5,4420.8,0.025]
[1756989015394,1.93952661,4422.6,4420.9,0.02261982]
[1756989015593,5.627,4423.4,4421.2,2.26181521]
[1756989015795,3.0,4423.3,4420.8,0.319]
[1756989016005,3.0,4423.3,4420.9,2.26195314]
[1756989016307,0.792,4423.2,4421.5,2.26163542]
[1756989016513,2.26096367,4422.9,4421.5,2.26163542]
[1756989016669,2.26087665,4423.1,4421.9,2.26145933]
[1756989016875,5.01870951,4423.0,4421.6,2.26159098]
[1756989017109,2.01870951,4423.0,4421.1,1.664]
[1756989017606,0.792,4422.7,4420.8,0.025]
[1756989017790,5.26113187,4422.6,4421.2,2.26178901]
[1756989018006,1.665,4422.5,4421.3,2.26176877]
[1756989018171,1.665,4422.5,4420.9,2.26196674]
[1756989018372,1.665,4422.5,4421.9,2.26144963]
[1756989018681,0.025,4423.8,4422.0,2.26142017]
[1756989019003,0.025,4423.8,4423.2,2.26078717]
[1756989019302,0.025,4423.8,4422.4,1.665]
[1756989019506,3.0,4423.6,4420.9,3.85296996]
[1756989019704,0.20820049,4423.8,4422.6,2.26110682]
[1756989019891,0.20820049,4423.8,4421.1,0.792]
[1756989019892,3.0,4423.4,4422.3,2.26126298]
[1756989020080,0.20820049,4423.8,4421.8,3.389]
[1756989020282,0.1128,4423.1,4423.0,2.26090888]
[1756989020601,0.025,4423.8,4423.7,2.26055112]
[1756989021071,0.025,4423.8,4423.7,6.35735112]
[1756989021271,0.1128,4424.9,4424.7,2.26004022]
[1756989021476,0.1128,4425.1,4424.7,2.26004022]
[1756989021707,3.702,4426.3,4424.7,2.37284022]
[1756989021891,0.1378,4425.8,4424.7,2.37284022]
[1756989022085,0.1128,4425.4,4424.7,2.37284022]
[1756989022506,0.025,4425.8,4424.7,2.39544062]
[1756989022881,0.025,4425.8,4424.7,2.37284022]
[1756989023401,0.1128,4425.4,4424.7,2.37284022]
[1756989023585,0.025,4425.8,4424.7,2.37284022]
[1756989023782,0.025,4425.8,4425.7,2.25952956]
[1756989024294,0.025,4425.8,4424.9,1.665]
[1756989024497,0.1128,4425.4,4424.8,0.1128]
[1756989024711,0.1128,4425.4,4424.8,2.37278481]
[1756989025008,0.025,4425.8,4424.2,1.665]
[1756989025310,0.1128,4424.9,4424.2,1.7778]
[1756989025607,0.1128,4424.9,4424.8,2.25998915]
[1756989025909,0.1128,4424.9,4424.5,2.26013248]
[1756989025910,0.001,4424.8,4424.7,2.26004022]
[1756989026418,0.001,4424.8,4424.7,2.37284022]
[1756989027106,0.001,4424.8,4424.7,4.21613649]
[1756989027301,0.001,4424.8,4424.7,4.19353609]
[1756989027481,0.001,4424.8,4424.7,4.21613649]
[1756989027680,0.001,4424.8,4423.8,1.69]
[1756989027893,0.001,4424.8,4423.9,3.988]
[1756989028091,0.001,4424.8,4424.1,2.26034538]
[1756989028602,0.001,4424.8,4423.9,3.988]
[1756989028779,0.22708462,4424.8,4423.8,1.69]
[1756989028979,0.001,4424.8,4423.8,1.69]
[1756989029206,0.001,4424.8,4424.2,2.26028679]
[1756989029584,0.001,4424.8,4424.3,2.26024285]
[1756989029782,0.001,4424.8,4424.1,2.26034302]
[1756989030510,0.001,4424.8,4423.8,1.69]
[1756989030728,2.26038099,4424.1,4423.8,0.025]
[1756989030908,2.48643788,4424.0,4423.8,0.025]
[1756989031223,1.665,4424.3,4423.8,0.025]
[1756989031382,2.26044892,4423.9,4423.8,0.025]
[1756989031924,9.25144892,4423.9,4423.8,0.025]
[1756989032220,8.14318149,4423.9,4423.8,0.025]
[1756989032403,10.40363041,4423.9,4423.8,0.025]
[1756989032604,11.19563041,4423.9,4423.8,0.025]
[1756989032806,11.19483041,4423.9,4423.8,0.025]
[1756989033413,6.41083041,4423.9,4423.8,0.025]
[1756989033592,11.19483041,4423.9,4423.8,0.025]
[1756989034006,11.19383041,4423.9,4423.8,0.025]
[1756989034548,11.19383041,4423.9,4421.6,2.26162284]
[1756989034549,2.26055112,4423.7,4421.3,2.26577336]
[1756989034845,0.792,4423.0,4421.3,0.004]
[1756989035140,2.26147131,4421.9,4421.3,0.004]
[1756989035341,5.658,4422.2,4421.3,0.004]
[1756989035637,0.792,4423.1,4421.3,0.004]
[1756989035638,1.665,4422.4,4421.3,0.004]
[1756989035821,3.0,4422.2,4421.4,2.26171277]
[1756989036026,3.995,4423.0,4421.9,2.26142447]
[1756989036337,2.26127704,4422.3,4421.3,2.26576426]
[1756989036553,2.2609771,4422.9,4421.9,2.26147063]
[1756989036838,3.0,4422.7,4421.3,0.004]
[1756989037040,1.24904838,4422.6,4421.3,0.004]
[1756989037218,0.792,4422.3,4421.3,0.004]
[1756989037425,2.26172705,4421.4,4421.3,0.004]
[1756989037610,9.49489976,4421.4,4421.3,0.004]
[1756989037951,10.39969976,4421.4,4421.3,0.004]
[1756989038111,10.85766088,4421.4,4421.3,0.004]
[1756989038834,6.05393168,4421.0,4420.9,0.004]
[1756989039033,9.30847153,4421.0,4420.9,0.004]
[1756989039229,3.792,4420.9,4419.8,0.025]
[1756989039431,2.26249462,4419.9,4419.8,0.025]
[1756989039618,12.29825574,4419.9,4419.8,0.025]
[1756989039819,13.75432313,4419.9,4419.8,0.025]
[1756989040040,14.95332313,4419.9,4419.8,1e-08]
[1756989040263,3.0,4419.8,4419.0,0.004]
[1756989040551,3.0,4419.6,4419.0,0.004]
[1756989040715,0.45796112,4419.5,4419.0,0.004]
[1756989041049,3.0,4419.3,4419.0,0.004]
[1756989041247,0.45942365,4419.2,4419.0,0.004]
[1756989041969,6.05490421,4419.1,4419.0,0.004]
[1756989042257,6.51432786,4419.1,4419.0,0.004]
[1756989042670,6.51432786,4419.1,4419.0,1e-08]